[Event "Open NK Rapid 2025"]
[Site "Helmond, Netherlands"]
[Date "2025.05.03"]
[Round "3.20"]
[White "Labruyere, Roger"]
[Black "Frederiks, Jesse"]
[Result "1-0"]
[TimeControl "15+5"]
[WhiteFideId "1059505"]
[BlackFideId "1095790"]
[WhiteElo "2117"]
[BlackElo "1937"]

1. e4 {[%clk 00:15:08]} {[%emt 00:00:02]} e5 {[%clk 00:14:53]} {[%emt
00:00:17]} 2. Nf3 {[%clk 00:15:10]} {[%emt 00:00:03]} Nc6 {[%clk 00:14:56]}
{[%emt 00:00:01]} 3. Bb5 {[%clk 00:14:48]} {[%emt 00:00:28]} a6 {[%clk
00:14:59]} {[%emt 00:00:02]} 4. Ba4 {[%clk 00:14:52]} Nf6 {[%clk 00:15:03]}
{[%emt 00:00:01]} 5. O-O {[%clk 00:14:55]} {[%emt 00:00:02]} Be7 {[%clk
00:15:06]} {[%emt 00:00:01]} 6. Re1 {[%clk 00:14:59]} b5 {[%clk 00:15:10]}
{[%emt 00:00:02]} 7. Bb3 {[%clk 00:15:04]} {[%emt 00:00:01]} O-O {[%clk
00:15:13]} {[%emt 00:00:01]} 8. a4 {[%clk 00:15:04]} {[%emt 00:00:06]} b4
{[%clk 00:14:02]} {[%emt 00:01:15]} 9. a5 {[%clk 00:15:03]} {[%emt 00:00:07]}
Bb7 {[%clk 00:13:57]} {[%emt 00:00:09]} 10. d4 {[%clk 00:14:55]} {[%emt
00:00:13]} Nxd4 {[%clk 00:13:33]} {[%emt 00:00:29]} 11. Nxd4 {[%clk 00:14:57]}
{[%emt 00:00:04]} exd4 {[%clk 00:13:36]} {[%emt 00:00:01]} 12. e5 {[%clk
00:15:00]} {[%emt 00:00:02]} Ne4 {[%clk 00:13:19]} {[%emt 00:00:22]} 13. Qg4
{[%clk 00:14:40]} {[%emt 00:00:25]} d5 {[%clk 00:09:40]} {[%emt 00:03:43]} 14.
Bh6 {[%clk 00:10:50]} {[%emt 00:03:55]} Bg5 {[%clk 00:09:34]} {[%emt 00:00:12]}
15. Rxe4 {[%clk 00:10:39]} {[%emt 00:00:16]} Bxh6 {[%clk 00:09:19]} {[%emt
00:00:21]} 16. Rxd4 {[%clk 00:10:42]} {[%emt 00:00:01]} c5 {[%clk 00:08:29]}
{[%emt 00:00:55]} 17. Rd1 {[%clk 00:10:13]} {[%emt 00:00:34]} Qe7 {[%clk
00:08:11]} {[%emt 00:00:23]} 18. Nd2 {[%clk 00:07:02]} {[%emt 00:03:16]} Bxd2
{[%clk 00:07:57]} {[%emt 00:00:19]} 19. Rxd2 {[%clk 00:07:06]} c4 {[%clk
00:07:49]} {[%emt 00:00:13]} 20. Ba4 {[%clk 00:06:47]} {[%emt 00:00:24]} Qxe5
{[%clk 00:07:30]} {[%emt 00:00:24]} 21. Rd4 {[%clk 00:06:35]} {[%emt 00:00:16]}
Bc8 {[%clk 00:06:38]} {[%emt 00:00:58]} 22. Qd1 {[%clk 00:06:39]} {[%emt
00:00:01]} Be6 {[%clk 00:06:36]} {[%emt 00:00:07]} 23. Qd2 {[%clk 00:06:40]}
{[%emt 00:00:03]} Rfd8 {[%clk 00:06:07]} {[%emt 00:00:34]} 24. Rd1 {[%clk
00:06:36]} {[%emt 00:00:10]} Qf6 {[%clk 00:06:04]} {[%emt 00:00:08]} 25. Qxb4
{[%clk 00:06:34]} {[%emt 00:00:07]} Rab8 {[%clk 00:05:50]} {[%emt 00:00:18]} 26.
Qc3 {[%clk 00:06:37]} {[%emt 00:00:02]} h6 {[%clk 00:05:02]} {[%emt 00:00:55]}
27. h3 {[%clk 00:06:27]} {[%emt 00:00:15]} Qe7 {[%clk 00:04:31]} {[%emt
00:00:35]} 28. Bc6 {[%clk 00:05:27]} {[%emt 00:01:05]} Qc5 {[%clk 00:04:09]}
{[%emt 00:00:27]} 29. Ba4 {[%clk 00:05:12]} {[%emt 00:00:20]} Rb4 {[%clk
00:03:02]} {[%emt 00:01:12]} 30. b3 {[%clk 00:05:04]} {[%emt 00:00:14]} Rdb8
{[%clk 00:02:45]} {[%emt 00:00:21]} 31. Bd7 {[%clk 00:04:35]} {[%emt 00:00:34]}
Qxa5 {[%clk 00:02:26]} {[%emt 00:00:25]} 32. Bxe6 {[%clk 00:04:39]} fxe6 {[%clk
00:02:30]} {[%emt 00:00:01]} 33. bxc4 {[%clk 00:04:39]} {[%emt 00:00:04]} dxc4
{[%clk 00:02:05]} {[%emt 00:00:29]} 34. Rd7 {[%clk 00:04:39]} {[%emt 00:00:05]}
Qg5 {[%clk 00:01:55]} {[%emt 00:00:15]} 35. R1d4 {[%clk 00:04:08]} {[%emt
00:00:36]} Rb1+ {[%clk 00:01:50]} {[%emt 00:00:11]} 36. Kh2 {[%clk 00:04:13]}
Qe5+ {[%clk 00:01:32]} {[%emt 00:00:24]} 37. f4 {[%clk 00:04:10]} {[%emt
00:00:08]} Qe1 {[%clk 00:01:19]} {[%emt 00:00:18]} 38. Rxg7+ {[%clk 00:02:59]}
{[%emt 00:01:15]} Kh8 {[%clk 00:00:46]} {[%emt 00:00:37]} 39. Qxe1 {[%clk
00:02:53]} {[%emt 00:00:11]} Rxe1 {[%clk 00:00:51]} {[%emt 00:00:01]} 40. Ra7
{[%clk 00:02:50]} {[%emt 00:00:09]} Rc8 {[%clk 00:00:37]} {[%emt 00:00:19]} 41.
Rxa6 {[%clk 00:02:53]} {[%emt 00:00:02]} Re2 {[%clk 00:00:41]} {[%emt
00:00:01]} 42. Rdd6 {[%clk 00:02:23]} {[%emt 00:00:34]} Re8 {[%clk 00:00:14]}
{[%emt 00:00:32]} 43. Kg3 {[%clk 00:02:03]} {[%emt 00:00:24]} Rxc2 {[%emt
00:00:03]} 44. Rxe6 {[%clk 00:02:07]} Rg8+ {[%clk 00:00:18]} {[%emt 00:00:05]}
45. Rg6 {[%clk 00:02:11]} Rxg6+ {[%clk 00:00:22]} {[%emt 00:00:01]} 46. Rxg6
{[%clk 00:02:15]} Kh7 {[%clk 00:00:25]} {[%emt 00:00:02]} 47. Rc6 {[%clk
00:02:19]} Rc1 {[%clk 00:00:22]} {[%emt 00:00:08]} 48. Kg4 {[%clk 00:02:20]}
{[%emt 00:00:04]} Kg7 {[%clk 00:00:16]} {[%emt 00:00:11]} 49. Kh5 {[%clk
00:02:18]} {[%emt 00:00:06]} Rc2 {[%clk 00:15:05]} {[%emt 00:00:23]} 1-0

[Event "Open NK Rapid 2025"]
[Site "Helmond, Netherlands"]
[Date "2025.05.03"]
[Round "3.21"]
[White "Meulmeester, Luuk"]
[Black "Margaryan, Artur"]
[Result "0-1"]
[TimeControl "15+5"]
[WhiteFideId "40111776"]
[BlackFideId "13304348"]
[WhiteElo "1929"]
[BlackElo "2100"]

1. Nf3 {[%clk 00:15:08]} c5 {[%clk 00:15:07]} {[%emt 00:00:04]} 2. c4 {[%clk
00:15:11]} {[%emt 00:00:02]} b6 {[%clk 00:15:09]} {[%emt 00:00:03]} 3. g3
{[%clk 00:15:12]} {[%emt 00:00:04]} Bb7 {[%clk 00:15:12]} {[%emt 00:00:02]} 4.
Bg2 {[%clk 00:15:16]} {[%emt 00:00:01]} e6 {[%clk 00:15:14]} {[%emt 00:00:04]}
5. Nc3 {[%clk 00:15:18]} {[%emt 00:00:02]} a6 {[%clk 00:15:18]} {[%emt
00:00:02]} 6. e3 {[%clk 00:15:16]} {[%emt 00:00:06]} d6 {[%clk 00:15:19]}
{[%emt 00:00:04]} 7. b3 {[%clk 00:15:02]} {[%emt 00:00:20]} Nf6 {[%clk
00:15:21]} {[%emt 00:00:02]} 8. Bb2 {[%clk 00:15:05]} {[%emt 00:00:02]} Be7
{[%clk 00:15:24]} {[%emt 00:00:03]} 9. O-O {[%clk 00:15:05]} {[%emt 00:00:04]}
Nbd7 {[%clk 00:15:23]} {[%emt 00:00:06]} 10. d4 {[%clk 00:14:42]} {[%emt
00:00:28]} O-O {[%clk 00:15:22]} {[%emt 00:00:06]} 11. Qe2 {[%clk 00:14:04]}
{[%emt 00:00:43]} Qc7 {[%emt 00:00:35]} 12. Rfd1 {[%clk 00:13:47]} Rfe8 {[%clk
00:15:13]} {[%emt 00:00:06]} 13. Rac1 {[%clk 00:13:22]} {[%emt 00:00:30]} Rac8
{[%clk 00:15:17]} {[%emt 00:00:01]} 14. e4 {[%clk 00:12:55]} {[%emt 00:00:32]}
cxd4 {[%clk 00:15:20]} {[%emt 00:00:02]} 15. Nxd4 {[%clk 00:12:57]} {[%emt
00:00:02]} Qb8 {[%clk 00:15:17]} {[%emt 00:00:09]} 16. h3 {[%clk 00:12:19]}
{[%emt 00:00:43]} Bf8 {[%clk 00:14:43]} {[%emt 00:00:39]} 17. f4 {[%clk
00:11:16]} {[%emt 00:01:08]} Nc5 {[%clk 00:12:39]} {[%emt 00:02:09]} 18. b4
{[%clk 00:10:19]} {[%emt 00:01:02]} Ncd7 {[%clk 00:12:04]} {[%emt 00:00:40]} 19.
b5 {[%clk 00:08:30]} {[%emt 00:01:54]} e5 {[%clk 00:09:19]} {[%emt 00:02:51]}
20. bxa6 {[%clk 00:05:50]} {[%emt 00:02:45]} Bxa6 {[%clk 00:09:10]} {[%emt
00:00:14]} 21. Ndb5 {[%clk 00:05:48]} {[%emt 00:00:07]} exf4 {[%clk 00:07:40]}
{[%emt 00:01:34]} 22. gxf4 {[%clk 00:05:52]} {[%emt 00:00:02]} Nc5 {[%clk
00:07:29]} {[%emt 00:00:15]} 23. Ba3 {[%clk 00:04:01]} {[%emt 00:01:57]} Bb7
{[%clk 00:06:15]} {[%emt 00:01:19]} 24. Bxc5 {[%clk 00:04:00]} {[%emt
00:00:05]} Rxc5 {[%clk 00:06:08]} {[%emt 00:00:13]} 25. Na4 {[%clk 00:03:44]}
{[%emt 00:00:21]} Nxe4 {[%clk 00:04:53]} {[%emt 00:01:19]} 26. Nxc5 {[%clk
00:03:34]} {[%emt 00:00:15]} dxc5 {[%clk 00:04:49]} {[%emt 00:00:09]} 27. Bxe4
{[%clk 00:02:59]} {[%emt 00:00:40]} Rxe4 {[%clk 00:04:39]} {[%emt 00:00:16]} 28.
Qd2 {[%clk 00:02:51]} {[%emt 00:00:12]} Rxf4 {[%clk 00:03:57]} {[%emt
00:00:48]} 29. Rc3 {[%clk 00:02:09]} {[%emt 00:00:46]} Qe5 {[%clk 00:03:35]}
{[%emt 00:00:27]} 30. Re1 {[%clk 00:01:47]} {[%emt 00:00:27]} Qg5+ {[%clk
00:02:04]} {[%emt 00:01:37]} 31. Kh2 {[%clk 00:01:51]} Qh4 {[%clk 00:02:01]}
{[%emt 00:00:08]} 32. Rg3 {[%clk 00:01:31]} {[%emt 00:00:24]} g6 {[%clk
00:01:58]} {[%emt 00:00:08]} 33. Re8 {[%clk 00:00:44]} {[%emt 00:00:52]} Qf6
{[%clk 00:01:55]} {[%emt 00:00:09]} 34. Re2 {[%clk 00:00:42]} {[%emt 00:00:06]}
Bc6 {[%clk 00:01:50]} {[%emt 00:00:10]} 35. Nc3 {[%clk 00:00:35]} {[%emt
00:00:11]} Rxc4 {[%clk 00:01:41]} {[%emt 00:00:15]} 36. Rf2 {[%clk 00:00:35]}
{[%emt 00:00:05]} Qd6 {[%clk 00:01:39]} {[%emt 00:00:07]} 37. Qc2 {[%clk
00:00:10]} {[%emt 00:00:30]} Bg7 {[%clk 00:01:28]} {[%emt 00:00:17]} 38. Qb3
{[%clk 00:00:12]} {[%emt 00:00:03]} b5 {[%clk 00:01:14]} {[%emt 00:00:18]} 39.
Nxb5 {[%clk 00:00:12]} {[%emt 00:00:05]} Qd5 {[%clk 00:01:18]} {[%emt
00:00:02]} 40. Qc3 {[%clk 00:00:00]} {[%emt 00:00:14]} Bf8 {[%clk 00:00:00]}
0-1

[Event "Open NK Rapid 2025"]
[Site "Helmond, Netherlands"]
[Date "2025.05.03"]
[Round "3.22"]
[White "Kools, Thomas"]
[Black "Leenen, Boyd"]
[Result "1/2-1/2"]
[TimeControl "15+5"]
[WhiteFideId "1054759"]
[BlackFideId "1083937"]
[WhiteElo "2094"]
[BlackElo "1931"]

1. e4 {[%clk 00:15:08]} {[%emt 00:00:02]} e5 {[%clk 00:15:09]} {[%emt
00:00:01]} 2. Nf3 {[%clk 00:15:11]} {[%emt 00:00:02]} Nc6 {[%clk 00:15:13]} 3.
Bc4 {[%clk 00:15:15]} {[%emt 00:00:02]} Nf6 {[%clk 00:15:16]} {[%emt 00:00:02]}
4. d3 {[%clk 00:15:19]} {[%emt 00:00:02]} d5 {[%clk 00:15:13]} {[%emt
00:00:07]} 5. exd5 {[%clk 00:14:58]} {[%emt 00:00:26]} Nxd5 {[%clk 00:15:16]}
{[%emt 00:00:01]} 6. O-O {[%clk 00:14:50]} {[%emt 00:00:14]} Be7 {[%clk
00:15:18]} {[%emt 00:00:02]} 7. Re1 {[%clk 00:14:25]} {[%emt 00:00:30]} f6
{[%clk 00:15:21]} {[%emt 00:00:02]} 8. d4 {[%clk 00:12:55]} {[%emt 00:01:36]}
Nb6 {[%clk 00:15:24]} {[%emt 00:00:02]} 9. Bb5 {[%clk 00:12:47]} {[%emt
00:00:13]} Bg4 {[%clk 00:15:26]} {[%emt 00:00:02]} 10. h3 {[%clk 00:11:26]}
{[%emt 00:01:27]} Bh5 {[%clk 00:14:51]} {[%emt 00:00:40]} 11. g4 {[%clk
00:10:43]} {[%emt 00:00:48]} Bg6 {[%clk 00:14:22]} {[%emt 00:00:33]} 12. c3
{[%clk 00:10:13]} {[%emt 00:00:37]} O-O {[%clk 00:13:56]} {[%emt 00:00:30]} 13.
Bxc6 {[%clk 00:09:08]} {[%emt 00:01:10]} bxc6 {[%clk 00:14:00]} {[%emt
00:00:01]} 14. dxe5 {[%clk 00:09:12]} {[%emt 00:00:01]} Qxd1 {[%clk 00:13:54]}
{[%emt 00:00:11]} 15. Rxd1 {[%clk 00:09:16]} {[%emt 00:00:01]} Be4 {[%clk
00:12:50]} {[%emt 00:01:09]} 16. exf6 {[%clk 00:06:53]} {[%emt 00:02:29]} Bxf6
{[%clk 00:12:27]} {[%emt 00:00:28]} 17. Ng5 {[%clk 00:06:37]} {[%emt 00:00:21]}
Bd5 {[%clk 00:11:56]} {[%emt 00:00:35]} 18. f4 {[%clk 00:02:35]} {[%emt
00:04:08]} h6 {[%clk 00:11:50]} {[%emt 00:00:11]} 19. Rxd5 {[%clk 00:02:39]}
{[%emt 00:00:01]} hxg5 {[%clk 00:11:27]} {[%emt 00:00:28]} 20. Rd1 {[%clk
00:02:24]} {[%emt 00:00:20]} gxf4 {[%clk 00:11:30]} {[%emt 00:00:01]} 21. Nd2
{[%clk 00:02:16]} {[%emt 00:00:13]} Rad8 {[%clk 00:11:29]} {[%emt 00:00:07]} 22.
Rf1 {[%clk 00:02:20]} Nd5 {[%clk 00:11:18]} {[%emt 00:00:17]} 23. Nc4 {[%clk
00:02:20]} {[%emt 00:00:05]} Bh4 {[%clk 00:10:57]} {[%emt 00:00:26]} 24. Bd2
{[%clk 00:02:14]} {[%emt 00:00:10]} g5 {[%clk 00:10:35]} {[%emt 00:00:27]} 25.
Rad1 {[%clk 00:02:16]} {[%emt 00:00:04]} Nb6 {[%clk 00:10:19]} {[%emt
00:00:21]} 26. Ne5 {[%clk 00:01:57]} {[%emt 00:00:24]} Rfe8 {[%clk 00:09:35]}
{[%emt 00:00:48]} 27. Nf3 {[%clk 00:02:01]} {[%emt 00:00:01]} Re2 {[%clk
00:09:26]} {[%emt 00:00:13]} 28. Bc1 {[%clk 00:01:50]} {[%emt 00:00:17]} Rxd1
{[%clk 00:09:01]} {[%emt 00:00:30]} 29. Rxd1 {[%clk 00:01:55]} Bg3 {[%clk
00:08:36]} {[%emt 00:00:30]} 30. Nxg5 {[%clk 00:01:41]} {[%emt 00:00:19]} Na4
{[%clk 00:08:38]} {[%emt 00:00:03]} 31. Rf1 {[%clk 00:00:52]} {[%emt 00:00:53]}
Re1 {[%clk 00:06:29]} {[%emt 00:02:14]} 32. Rxe1 {[%clk 00:00:54]} {[%emt
00:00:03]} Bxe1 {[%clk 00:06:33]} {[%emt 00:00:01]} 33. Bxf4 {[%clk 00:00:58]}
{[%emt 00:00:01]} Nxb2 {[%clk 00:06:36]} {[%emt 00:00:02]} 34. Be5 {[%clk
00:00:47]} {[%emt 00:00:16]} Na4 {[%clk 00:05:58]} {[%emt 00:00:44]} 35. Ne4
{[%clk 00:00:50]} {[%emt 00:00:01]} Kf7 {[%clk 00:06:02]} {[%emt 00:00:02]} 36.
Kf1 {[%clk 00:00:48]} {[%emt 00:00:06]} Bh4 {[%clk 00:06:06]} {[%emt 00:00:01]}
37. Bxc7 {[%clk 00:00:50]} {[%emt 00:00:04]} Ke6 {[%clk 00:06:08]} {[%emt
00:00:03]} 38. Ke2 {[%clk 00:00:48]} {[%emt 00:00:07]} Kd5 {[%clk 00:06:10]}
{[%emt 00:00:03]} 39. Kd3 {[%clk 00:00:36]} {[%emt 00:00:17]} Nb2+ {[%clk
00:06:10]} {[%emt 00:00:05]} 40. Kc2 {[%clk 00:00:40]} Nc4 {[%clk 00:06:13]}
{[%emt 00:00:02]} 41. Nd2 {[%clk 00:00:29]} {[%emt 00:00:16]} Ne3+ {[%clk
00:06:10]} {[%emt 00:00:07]} 42. Kd3 {[%clk 00:00:33]} Nd1 {[%clk 00:06:03]}
{[%emt 00:00:13]} 43. Nf3 {[%clk 00:00:35]} {[%emt 00:00:02]} Bf6 {[%clk
00:05:58]} {[%emt 00:00:11]} 44. c4+ {[%clk 00:00:37]} {[%emt 00:00:03]} Ke6
{[%clk 00:06:01]} 45. g5 {[%clk 00:00:28]} {[%emt 00:00:14]} Bh8 {[%clk
00:06:05]} {[%emt 00:00:02]} 46. h4 {[%clk 00:00:22]} {[%emt 00:00:11]} 1/2-1/2

[Event "Open NK Rapid 2025"]
[Site "Helmond, Netherlands"]
[Date "2025.05.03"]
[Round "3.23"]
[White "Uddin, Ahnaf Tajwar"]
[Black "Madularea, David"]
[Result "1/2-1/2"]
[TimeControl "15+5"]
[WhiteFideId "1050842"]
[BlackFideId "1070215"]
[WhiteElo "2081"]
[BlackElo "1921"]

1. b3 {[%clk 00:15:08]} {[%emt 00:00:02]} e5 {[%clk 00:15:02]} {[%emt
00:00:09]} 2. Bb2 {[%clk 00:15:12]} {[%emt 00:00:01]} d6 {[%clk 00:15:06]} 3.
e3 {[%clk 00:15:15]} {[%emt 00:00:01]} Nf6 {[%clk 00:15:08]} {[%emt 00:00:03]}
4. Nf3 {[%clk 00:15:18]} {[%emt 00:00:02]} g6 {[%clk 00:15:11]} {[%emt
00:00:02]} 5. d4 {[%clk 00:15:22]} exd4 {[%clk 00:15:15]} {[%emt 00:00:01]} 6.
Nxd4 {[%clk 00:15:12]} {[%emt 00:00:15]} Bg7 {[%emt 00:00:34]} 7. c4 {[%clk
00:14:46]} O-O {[%clk 00:15:11]} {[%emt 00:00:11]} 8. Nc3 {[%clk 00:14:50]}
{[%emt 00:00:02]} Re8 {[%clk 00:14:18]} {[%emt 00:00:58]} 9. Be2 {[%clk
00:14:44]} {[%emt 00:00:11]} Nc6 {[%clk 00:14:09]} {[%emt 00:00:14]} 10. O-O
{[%clk 00:14:16]} {[%emt 00:00:33]} Nxd4 {[%clk 00:13:44]} {[%emt 00:00:30]} 11.
exd4 {[%clk 00:14:02]} {[%emt 00:00:19]} Bf5 {[%clk 00:13:43]} {[%emt
00:00:06]} 12. Bf3 {[%clk 00:13:59]} {[%emt 00:00:08]} c6 {[%clk 00:13:19]}
{[%emt 00:00:28]} 13. Qd2 {[%clk 00:13:42]} {[%emt 00:00:22]} d5 {[%clk
00:13:01]} {[%emt 00:00:24]} 14. Rfe1 {[%clk 00:12:27]} {[%emt 00:01:20]} Qd7
{[%clk 00:12:53]} {[%emt 00:00:13]} 15. cxd5 {[%clk 00:11:49]} {[%emt
00:00:42]} cxd5 {[%clk 00:12:38]} {[%emt 00:00:20]} 16. Re5 {[%clk 00:11:43]}
{[%emt 00:00:11]} Ne4 {[%clk 00:11:39]} {[%emt 00:01:05]} 17. Bxe4 {[%clk
00:07:30]} {[%emt 00:04:17]} dxe4 {[%clk 00:10:59]} {[%emt 00:00:45]} 18. Rxe8+
{[%clk 00:07:27]} {[%emt 00:00:09]} Rxe8 {[%clk 00:10:56]} {[%emt 00:00:08]} 19.
Nd1 {[%clk 00:06:58]} {[%emt 00:00:33]} Rd8 {[%clk 00:09:30]} {[%emt 00:01:30]}
20. Ne3 {[%clk 00:07:02]} {[%emt 00:00:02]} Bxd4 {[%clk 00:09:19]} {[%emt
00:00:16]} 21. Bxd4 {[%clk 00:04:51]} {[%emt 00:02:16]} Qxd4 {[%clk 00:09:21]}
{[%emt 00:00:03]} 22. Qxd4 {[%clk 00:04:53]} {[%emt 00:00:04]} Rxd4 {[%clk
00:09:24]} 23. Rd1 {[%emt 00:00:25]} Rxd1+ {[%clk 00:09:02]} {[%emt 00:00:14]}
24. Nxd1 {[%clk 00:04:51]} {[%emt 00:00:01]} Be6 {[%clk 00:09:01]} {[%emt
00:00:06]} 25. Kf1 {[%emt 00:00:13]} f5 {[%clk 00:09:00]} 26. Ke2 {[%clk
00:04:47]} {[%emt 00:00:07]} Kf7 {[%clk 00:08:36]} {[%emt 00:00:29]} 27. Ke3
{[%clk 00:04:48]} {[%emt 00:00:04]} Ke7 {[%clk 00:08:35]} {[%emt 00:00:05]} 28.
Kd4 {[%clk 00:04:51]} {[%emt 00:00:03]} Kd6 {[%clk 00:08:36]} {[%emt 00:00:04]}
29. g3 {[%clk 00:04:55]} {[%emt 00:00:02]} b5 {[%clk 00:08:12]} {[%emt
00:00:28]} 30. Ne3 {[%clk 00:04:55]} {[%emt 00:00:04]} a5 {[%clk 00:08:12]}
{[%emt 00:00:06]} 31. Nc2 {[%clk 00:04:34]} {[%emt 00:00:27]} g5 {[%clk
00:07:59]} {[%emt 00:00:18]} 32. Ne3 {[%clk 00:04:23]} {[%emt 00:00:16]} f4
{[%clk 00:07:48]} {[%emt 00:00:16]} 33. gxf4 {[%clk 00:04:21]} {[%emt
00:00:06]} gxf4 {[%clk 00:07:52]} {[%emt 00:00:01]} 34. Ng2 {[%clk 00:04:16]}
{[%emt 00:00:11]} e3 {[%clk 00:06:46]} {[%emt 00:01:10]} 35. f3 {[%clk
00:04:09]} {[%emt 00:00:13]} e2 {[%clk 00:05:59]} {[%emt 00:00:52]} 36. Kd3
{[%clk 00:04:00]} {[%emt 00:00:14]} a4 {[%clk 00:04:44]} {[%emt 00:01:19]} 37.
Kxe2 {[%clk 00:03:20]} {[%emt 00:00:45]} a3 {[%clk 00:04:29]} {[%emt 00:00:21]}
38. Ne1 {[%clk 00:02:35]} {[%emt 00:00:49]} Bf5 {[%clk 00:04:26]} {[%emt
00:00:08]} 39. Nd3 {[%clk 00:02:24]} {[%emt 00:00:16]} Kd5 {[%clk 00:04:26]}
{[%emt 00:00:05]} 40. Nxf4+ {[%clk 00:02:20]} {[%emt 00:00:09]} Kd4 {[%clk
00:03:53]} {[%emt 00:00:38]} 41. Kd2 {[%clk 00:02:22]} {[%emt 00:00:03]} Bb1
{[%clk 00:03:19]} {[%emt 00:00:40]} 42. Ne2+ {[%clk 00:02:24]} {[%emt
00:00:02]} Kc5 {[%clk 00:03:02]} {[%emt 00:00:22]} 43. Nc3 {[%clk 00:02:21]}
{[%emt 00:00:08]} Bf5 {[%clk 00:03:05]} {[%emt 00:00:02]} 44. Ke3 {[%clk
00:02:20]} {[%emt 00:00:06]} Bc2 {[%clk 00:02:59]} {[%emt 00:00:11]} 45. Kd2
{[%clk 00:02:24]} Bf5 {[%clk 00:03:03]} {[%emt 00:00:02]} 46. Ke3 {[%clk
00:02:05]} {[%emt 00:00:24]} 1/2-1/2